bitfinex-derivatives/quotes_SOLF0:USTF0_20241105
["timestamp","ask_amount","ask_price","bid_price","bid_amount"]
[1730841816579,11.54892262,166.29,166.23,3.008]
[1730841816790,3.0073,166.27,166.23,3.008]
[1730841817874,3.9946,166.3,166.19,14.84892262]
[1730841818080,3.007,166.29,166.22,11.54892262]
[1730841818375,3.9946,166.3,166.22,11.54892262]
[1730841818882,3.0071,166.28,166.24,3.0077]
[1730841821384,3.0071,166.28,166.25,3.0076]
[1730841821584,3.0071,166.28,166.2,11.54892262]
[1730841821773,3.9946,166.3,166.2,11.54892262]
[1730841821978,3.9946,166.3,166.23,3.0078]
[1730841822587,3.0074,166.27,166.23,3.0078]
[1730841822971,3.0074,166.27,166.2,11.54892262]
[1730841823176,3.0071,166.28,166.2,11.54892262]
[1730841823473,3.0071,166.28,166.19,3.3]
[1730841823474,3.9946,166.3,166.22,11.54892262]
[1730841823677,3.9946,166.3,166.27,3.0071]
[1730841824679,7.0013,166.3,166.27,3.0071]
[1730841825277,1.3304,166.3,166.27,3.0071]
[1730841826480,3.0066,166.31,166.27,3.0071]
[1730841826989,6.3063,166.33,166.29,3.0068]
[1730841829384,3.0064,166.32,166.29,3.0068]
[1730841829582,3.3,166.33,166.24,14.84892262]
[1730841829985,3.0064,166.32,166.24,14.84892262]
[1730841830181,3.0064,166.32,166.28,3.0069]
[1730841835986,3.0066,166.31,166.28,3.0069]
[1730841838992,10.68667936,166.33,166.28,3.0069]
[1730841839190,10.68667936,166.33,166.27,7.38667936]
[1730841839592,3.0065,166.32,166.28,3.007]
[1730841840299,10.68667936,166.33,166.27,7.38667936]
[1730841840600,7.38667936,166.3,166.25,7.38667936]
[1730841841694,3.007,166.29,166.24,7.38667936]
[1730841843195,3.007,166.29,166.26,3.0074]
[1730841845007,3.0068,166.3,166.27,3.0072]
[1730841846003,3.0069,166.29,166.26,3.0074]
[1730841846596,3.3,166.33,166.27,7.38667936]
[1730841847006,7.38667936,166.32,166.27,7.38667936]
[1730841847499,3.0065,166.31,166.28,3.0071]
[1730841848099,1.3484,166.36,166.28,7.38667936]
[1730841848405,3.0061,166.34,166.28,7.38667936]
[1730841849107,3.0061,166.34,166.3,3.0066]
[1730841849405,3.0061,166.34,166.28,7.38667936]
[1730841850407,3.0061,166.34,166.31,3.0064]
[1730841850999,4.354,166.36,166.33,3.006]
[1730841851207,1.3484,166.36,166.31,7.38667936]
[1730841851712,4.3542,166.36,166.27,3.3]
[1730841851908,4.3542,166.36,166.31,7.38667936]
[1730841852113,4.3542,166.36,166.33,3.0061]
[1730841853214,3.0058,166.35,166.32,3.0063]
[1730841854713,3.0058,166.35,166.31,7.38667936]
[1730841854911,3.0061,166.34,166.31,3.0065]
[1730841855516,7.38667936,166.35,166.31,3.0065]
[1730841855814,3.0058,166.35,166.32,3.0063]
[1730841856804,4.3541,166.36,166.33,3.0061]
[1730841857006,4.3541,166.36,166.31,7.38667936]
[1730841857207,1.3484,166.36,166.31,7.38667936]
[1730841858312,3.0058,166.35,166.32,3.0062]
[1730841858507,3.0058,166.35,166.31,7.38667936]
[1730841858820,7.38667936,166.35,166.28,10.68667936]
[1730841859013,7.38667936,166.33,166.28,7.38667936]
[1730841859620,10.39287936,166.33,166.29,3.0067]
[1730841860417,3.0064,166.32,166.29,3.0067]
[1730841861826,7.38667936,166.31,166.26,7.38667936]
[1730841862025,7.38667936,166.31,166.25,10.68667936]
[1730841862226,3.0072,166.28,166.25,3.0076]
[1730841863734,3.007,166.29,166.25,3.0076]
[1730841864630,3.007,166.29,166.25,3.0075]
[1730841865131,3.007,166.29,166.25,10.39417936]
[1730841868535,3.007,166.29,166.25,7.38667936]
[1730841868833,3.007,166.29,166.26,3.0074]
[1730841870634,7.38667936,166.31,166.25,7.38667936]
[1730841870832,7.38667936,166.3,166.24,7.38667936]
[1730841871130,8.64717936,166.3,166.24,7.38667936]
[1730841871333,8.64717936,166.3,166.24,10.39447936]
[1730841871926,7.38667936,166.28,166.24,3.0078]
[1730841873328,3.0073,166.27,166.24,3.0078]
[1730841874929,3.0075,166.26,166.23,3.008]
[1730841875138,3.0075,166.26,166.21,3.28]
[1730841875139,7.38667936,166.26,166.22,7.38667936]
[1730841875337,7.38667936,166.28,166.22,7.38667936]
[1730841875535,3.0076,166.26,166.23,3.008]
[1730841876443,7.38667936,166.28,166.22,7.38667936]
[1730841876942,8.73397936,166.29,166.23,7.38667936]
[1730841877644,3.0073,166.27,166.24,3.0077]
[1730841878747,8.73397936,166.29,166.24,3.0077]
[1730841879043,3.0071,166.28,166.24,3.0077]
[1730841879643,3.0071,166.28,166.23,7.38667936]
[1730841879843,3.0071,166.28,166.25,3.0076]
[1730841880033,3.0071,166.28,166.23,7.38667936]
[1730841880438,3.0071,166.28,166.24,3.0077]
[1730841883152,1.2605,166.3,166.23,7.38667936]
[1730841883334,1.2605,166.3,166.26,3.0073]
[1730841883642,1.2605,166.3,166.25,7.38667936]
[1730841883843,1.2605,166.3,166.27,3.0071]
[1730841883844,4.2673,166.3,166.27,3.0071]
[1730841886749,3.0069,166.29,166.26,3.0074]
[1730841890149,4.2673,166.3,166.27,3.0072]
[1730841890340,3.0068,166.3,166.27,3.0072]
[1730841890545,3.0068,166.3,166.26,10.39407936]
[1730841890748,3.007,166.29,166.24,7.38667936]
[1730841891147,7.38667936,166.3,166.23,7.38667936]
[1730841891447,7.38667936,166.28,166.21,7.38667936]
[1730841892354,3.0076,166.26,166.21,7.38667936]
[1730841892955,3.0076,166.26,166.22,3.0081]
[1730841893452,7.38667936,166.27,166.22,3.0081]
[1730841893453,3.0077,166.25,166.22,3.0081]
[1730841896051,3.0075,166.26,166.23,3.0079]
[1730841896655,3.0076,166.25,166.23,3.0079]
[1730841900053,3.0074,166.27,166.23,7.38667936]
[1730841900462,3.0074,166.27,166.24,3.0078]
[1730841902755,3.28,166.31,166.24,7.38667936]
[1730841902953,3.0069,166.29,166.26,3.0074]
[1730841908359,3.0069,166.29,166.24,7.38667936]
[1730841908567,7.38667936,166.31,166.25,3.0075]
[1730841908862,3.0071,166.28,166.25,3.0075]
[1730841909959,10.39367936,166.29,166.25,3.0075]
[1730841910158,10.39367936,166.29,166.26,3.0074]
[1730841910859,10.39367936,166.29,166.25,3.0075]
[1730841911255,3.0071,166.28,166.25,3.0075]
[1730841919866,7.38667936,166.29,166.22,7.38667936]
[1730841920663,7.38667936,166.29,166.2,3.28]
[1730841920864,1.2882,166.3,166.19,1.2876]
[1730841921063,3.0078,166.25,166.21,10.39487936]
[1730841922077,3.0074,166.26,166.22,3.008]
[1730841922566,10.12647936,166.28,166.22,3.008]
[1730841923376,3.0077,166.25,166.22,3.008]
[1730841924171,3.0077,166.25,166.21,10.39497936]
[1730841925976,3.0075,166.26,166.21,10.39497936]
[1730841926164,10.12647936,166.28,166.21,10.39497936]
[1730841926671,3.0078,166.25,166.21,10.39497936]
[1730841927166,3.0079,166.24,166.2,7.38667936]
[1730841928269,3.0079,166.24,166.21,3.0083]
[1730841928678,7.38667936,166.27,166.2,7.38667936]
[1730841928878,7.38667936,166.26,166.2,10.39507936]
[1730841929980,7.38667936,166.26,166.15,0.8457]
[1730841930279,7.38667936,166.26,166.19,7.38667936]
[1730841930280,3.0083,166.22,166.19,7.38667936]
[1730841931268,3.0083,166.22,166.18,3.0088]
[1730841931473,3.0084,166.21,166.19,7.38667936]
[1730841932576,3.0084,166.21,166.19,10.39537936]
[1730841932975,7.38667936,166.24,166.19,10.39537936]
[1730841933175,3.0082,166.22,166.19,10.39537936]
[1730841935771,3.0082,166.22,166.19,3.0087]
[1730841936074,7.38667936,166.24,166.19,3.0087]
[1730841936675,7.38667936,166.23,166.12,1.2742]
[1730841936874,7.38667936,166.21,166.16,3.0091]
[1730841937272,7.38667936,166.19,166.12,1.2742]
[1730841937588,7.38667936,166.19,166.14,7.38667936]
[1730841939283,3.009,166.18,166.15,3.0094]
[1730841939985,7.38667936,166.19,166.14,3.0096]
[1730841940283,7.38667936,166.19,166.14,10.39627936]
[1730841940685,3.0089,166.18,166.15,3.0094]
[1730841942585,3.0089,166.18,166.14,3.0096]
[1730841944282,1.3383,166.21,166.15,7.38667936]
[1730841944482,3.0086,166.2,166.17,3.0089]
[1730841946290,3.0086,166.2,166.16,3.0091]
[1730841946880,3.0086,166.2,166.17,3.0091]
[1730841947785,3.0086,166.2,166.15,7.38667936]
[1730841947985,3.0087,166.19,166.16,3.0092]
[1730841948879,8.72497936,166.21,166.15,7.38667936]
[1730841949084,3.009,166.18,166.14,10.39617936]
[1730841949284,7.38667936,166.19,166.14,10.39617936]
[1730841949988,3.0092,166.17,166.13,3.0097]
[1730841950690,3.0096,166.14,166.11,3.0101]
[1730841951381,3.0099,166.13,166.1,6.2903]
[1730841951583,7.38667936,166.13,166.08,0.2205]
[1730841951784,3.0103,166.11,166.08,0.2205]
[1730841951982,7.38667936,166.11,166.08,0.2205]
[1730841952385,3.0105,166.1,166.08,0.2205]
[1730841952688,3.9816,166.15,166.08,7.60717936]
[1730841952891,3.0101,166.12,166.08,10.61777936]
[1730841953690,3.0099,166.13,166.08,10.61777936]
[1730841953885,7.38667936,166.14,166.08,10.61777936]
[1730841954592,3.0101,166.12,166.08,10.39727936]
[1730841954896,7.38667936,166.14,166.08,10.39727936]
[1730841955091,10.39647936,166.13,166.08,3.0106]
[1730841955294,7.38667936,166.13,166.08,3.0106]
[1730841955800,3.0105,166.1,166.06,3.0109]
[1730841955992,3.0105,166.1,166.06,10.39757936]
[1730841956187,3.0105,166.1,166.06,10.39767936]
[1730841957395,7.38667936,166.12,166.06,7.38667936]
[1730841957396,3.0106,166.09,166.06,7.38667936]
[1730841960205,3.0104,166.1,166.07,3.0108]
[1730841960497,3.9816,166.15,166.08,7.38667936]
[1730841960699,7.38667936,166.14,166.08,7.38667936]
[1730841960900,3.9816,166.15,166.06,7.38667936]
[1730841960901,7.38667936,166.13,166.06,7.38667936]
[1730841961102,7.38667936,166.12,166.06,7.38667936]
[1730841962001,3.0105,166.1,166.06,10.39757936]
[1730841962403,7.38667936,166.12,166.06,3.0109]
[1730841962596,7.38667936,166.12,166.06,10.39757936]
[1730841963111,3.0105,166.1,166.06,10.39757936]
[1730841963901,7.38667936,166.12,166.06,3.0109]
[1730841964102,3.0105,166.09,166.06,3.0109]
[1730841965499,3.0105,166.09,166.06,10.39757936]
[1730841966105,3.0105,166.09,166.06,3.0109]
[1730841966400,3.0104,166.1,166.07,3.0108]
[1730841967208,3.0102,166.11,166.08,10.39727936]
[1730841967500,7.38667936,166.13,166.08,7.38667936]
[1730841967700,3.0103,166.1,166.08,7.38667936]
[1730841969400,3.0103,166.1,166.08,10.39737936]
[1730841969702,3.0102,166.11,166.08,10.39737936]
[1730841971412,3.01,166.12,166.09,3.0104]
[1730841975115,7.38667936,166.13,166.07,3.0109]
[1730841975314,7.38667936,166.13,166.06,7.38667936]
[1730841976014,3.01,166.12,166.08,3.0106]
[1730841976309,3.9816,166.15,166.06,7.38667936]
[1730841976511,3.9816,166.15,166.09,7.38667936]
[1730841977007,3.0091,166.17,166.13,3.0097]
[1730841977208,7.38667936,166.18,166.11,7.38667936]
[1730841978313,3.0092,166.17,166.13,3.0097]
[1730841978519,7.38667936,166.16,166.1,7.38667936]
[1730841979613,7.38667936,166.14,166.08,3.26]
[1730841979819,7.38667936,166.13,166.07,7.38667936]
[1730841980120,7.38667936,166.13,166.06,3.26]
[1730841980411,7.38667936,166.11,166.06,3.26]
[1730841980717,10.39697936,166.11,166.07,3.0108]
[1730841983017,10.39697936,166.11,166.03,1.2676]
[1730841983018,3.011,166.07,166.03,3.0116]
[1730841983214,3.011,166.07,166.0,3.5844]
[1730841983215,3.011,166.07,166.02,7.38667936]
[1730841983815,3.011,166.07,166.03,3.0115]
[1730841986416,3.011,166.07,166.03,10.39817936]
[1730841986619,8.73027936,166.1,166.05,7.38667936]
[1730841987309,4.354,166.1,166.06,10.39767936]
[1730841987612,1.3436,166.1,166.06,10.39767936]
[1730841988416,4.354,166.1,166.06,7.38667936]
[1730841988618,1.3192,166.17,166.08,3.0107]
[1730841988919,7.38667936,166.13,166.08,3.0107]
[1730841989413,3.0102,166.11,166.08,3.0107]
[1730841989722,7.38667936,166.13,166.08,3.0107]
[1730841991211,3.0102,166.11,166.08,3.0107]
[1730841996919,3.26,166.14,166.07,7.38667936]
[1730841997119,3.0098,166.13,166.1,3.0103]
[1730841999924,7.38667936,166.14,166.09,7.38667936]
[1730842000123,3.0101,166.12,166.09,10.39717936]
[1730842000526,3.0101,166.12,166.09,7.38667936]
[1730842002420,3.26,166.23,166.11,7.38667936]
[1730842002714,43.32,166.26,166.1,3.26]
[1730842002715,7.38667936,166.21,166.14,7.38667936]
[1730842002920,3.009,166.18,166.14,10.39627936]
[1730842005622,3.0092,166.17,166.13,3.0097]
[1730842005917,3.0092,166.17,166.13,10.39637936]
[1730842006115,3.0092,166.17,166.14,3.0095]
[1730842006328,3.0089,166.18,166.13,7.38667936]
[1730842006518,2.5283,166.22,166.15,7.38667936]
[1730842006719,2.5283,166.22,166.16,7.38667936]
[1730842007026,3.0086,166.2,166.1,3.26]
[1730842007328,3.0086,166.2,166.16,10.39577936]
[1730842009434,3.0091,166.17,166.13,3.0097]
[1730842009837,3.0091,166.17,166.12,7.38667936]
[1730842009838,7.38667936,166.16,165.99,9.00440049]
[1730842010136,7.38667936,166.16,166.11,3.0101]
[1730842010735,7.38667936,166.16,166.1,7.38667936]
[1730842011334,3.0097,166.14,166.1,10.39687936]
[1730842012436,3.0098,166.13,166.1,10.39687936]
[1730842013628,3.0096,166.15,166.11,3.0101]
[1730842013827,3.0096,166.15,166.1,7.38667936]
[1730842014027,7.38667936,166.16,166.1,7.38667936]
[1730842014827,3.0097,166.14,166.11,3.0101]
[1730842015034,7.38667936,166.15,166.1,7.38667936]
[1730842015735,7.38667936,166.16,166.11,7.38667936]
[1730842016438,10.39607936,166.16,166.13,3.0097]
[1730842017036,2.5283,166.22,166.14,7.38667936]
[1730842017234,7.38667936,166.2,166.09,3.26]
[1730842017538,3.0094,166.16,166.12,10.39647936]
[1730842017739,3.0094,166.16,166.12,3.0098]
[1730842019634,2.5283,166.22,166.15,7.38667936]
[1730842019635,3.0087,166.19,166.15,7.38667936]
[1730842021247,3.0087,166.19,166.15,10.39607936]
[1730842021746,3.0087,166.19,166.15,3.0094]
[1730842023943,3.0085,166.2,166.17,3.009]
[1730842024148,7.38667936,166.21,166.17,3.009]
[1730842024339,2.5283,166.22,166.17,7.38667936]
[1730842024544,4.3325,166.24,166.2,3.0085]
[1730842024844,1.3246,166.24,166.19,7.38667936]
[1730842025051,3.0081,166.23,166.19,3.0087]
[1730842026244,10.39477936,166.23,166.19,3.0087]
[1730842030453,7.38667936,166.23,166.19,3.0087]
[1730842030661,7.38667936,166.23,166.17,3.0089]
[1730842031162,1.3246,166.24,166.18,7.38667936]
[1730842031356,2.656,166.26,166.21,7.38667936]
[1730842031659,3.0077,166.25,166.21,7.38667936]
[1730842032160,7.38667936,166.29,166.23,7.38667936]
[1730842032359,3.0074,166.27,166.23,7.38667936]
[1730842033263,3.0074,166.27,166.23,10.39457936]
[1730842033861,3.0076,166.26,166.23,7.38667936]
[1730842035263,7.38667936,166.28,166.24,3.0077]
[1730842035264,3.0072,166.28,166.24,3.0077]
[1730842035466,3.0072,166.28,166.23,7.38667936]
[1730842035467,7.38667936,166.28,166.23,7.38667936]
[1730842036169,2.6647,166.32,166.24,7.38667936]
[1730842036374,7.38667936,166.3,166.24,7.38667936]
[1730842037166,3.0072,166.28,166.24,10.39447936]
[1730842037468,7.38667936,166.29,166.23,7.38667936]
[1730842038670,3.0076,166.26,166.23,7.38667936]
[1730842041366,3.0076,166.26,166.23,10.39467936]
[1730842045072,3.0076,166.26,166.23,7.38667936]
[1730842047077,7.38667936,166.26,166.21,3.24]
[1730842047281,7.38667936,166.26,166.19,10.39527936]
[1730842047673,7.38667936,166.24,166.18,3.0087]
[1730842047873,7.38667936,166.23,166.18,3.0087]
[1730842048076,3.0081,166.23,166.19,7.38667936]
[1730842048275,7.38667936,166.29,166.22,10.39477936]
[1730842048685,3.0076,166.26,166.22,10.39477936]
[1730842049186,3.0077,166.25,166.22,10.39477936]
[1730842054688,3.0077,166.25,166.22,3.0081]
[1730842054883,3.0077,166.25,166.24,7.38667936]
[1730842057689,3.0074,166.27,166.24,7.38667936]
[1730842058190,3.0074,166.27,166.25,7.38667936]
[1730842059286,10.13407936,166.31,166.25,7.38667936]
[1730842060892,3.0074,166.27,166.25,7.38667936]
[1730842066393,10.13407936,166.31,166.25,7.38667936]
[1730842066394,3.0074,166.26,166.25,7.38667936]
[1730842067889,3.0073,166.27,166.25,7.38667936]
[1730842070003,3.0073,166.27,166.26,7.38667936]
[1730842070205,3.0071,166.28,166.26,7.38667936]
[1730842072098,2.7474,166.31,166.26,7.38667936]
[1730842072301,3.0069,166.29,166.26,7.38667936]
[1730842072697,2.7474,166.31,166.26,7.38667936]
[1730842073803,2.7474,166.31,166.28,7.38667936]
[1730842074000,3.0068,166.3,166.28,7.38667936]
[1730842074696,3.0069,166.29,166.28,7.38667936]
[1730842082112,3.0068,166.3,166.28,7.38667936]
[1730842083602,3.0068,166.3,166.24,3.0077]
[1730842083906,3.0068,166.3,166.28,7.38667936]
[1730842085005,4.3995,166.31,166.28,7.38667936]
[1730842085305,12.31952518,166.36,166.3,7.38667936]
[1730842085497,12.31952518,166.36,166.33,7.38667936]
[1730842085702,3.006,166.34,166.33,7.38667936]
[1730842087906,1.321,166.36,166.31,7.38667936]
[1730842088106,3.0062,166.33,166.31,7.38667936]
[1730842092515,1.321,166.36,166.31,7.38667936]
[1730842093315,1.321,166.36,166.29,3.0068]
[1730842093512,1.321,166.36,166.31,7.38667936]
[1730842094414,3.0063,166.33,166.31,7.38667936]
[1730842102122,3.0063,166.33,166.29,3.0068]
[1730842102321,3.0068,166.3,166.28,7.38667936]
[1730842102620,7.38667936,166.31,166.25,10.62667936]
[1730842102827,7.38667936,166.3,166.24,7.38667936]
[1730842103028,3.0076,166.25,166.24,7.38667936]
[1730842105120,3.0078,166.24,166.22,7.38667936]
[1730842106525,3.008,166.23,166.22,7.38667936]
[1730842106731,3.008,166.23,166.21,7.38667936]
[1730842107733,7.38667936,166.27,166.21,7.38667936]
[1730842108432,3.0081,166.23,166.21,7.38667936]
[1730842110334,3.0081,166.23,166.22,7.38667936]
[1730842111934,3.0079,166.24,166.22,7.38667936]
[1730842112133,4.5066,166.29,166.23,7.38667936]
[1730842112333,4.5066,166.29,166.25,7.38667936]
[1730842113040,1.2666,166.29,166.25,7.38667936]
[1730842113348,3.0076,166.26,166.25,7.38667936]
[1730842113931,3.0073,166.27,166.25,7.38667936]
[1730842114136,1.2666,166.29,166.25,7.38667936]
[1730842116241,3.0074,166.26,166.25,7.38667936]
[1730842123540,3.0075,166.26,166.2,3.0084]
[1730842123742,1.2666,166.29,166.23,7.38667936]
[1730842123942,1.2666,166.29,166.25,7.38667936]
[1730842124140,1.2666,166.29,166.26,7.38667936]
[1730842125341,3.0074,166.27,166.26,7.38667936]
[1730842126742,3.0075,166.26,166.25,7.38667936]
[1730842128246,3.0075,166.26,166.22,3.0082]
[1730842128454,3.0075,166.26,166.25,7.38667936]
[1730842141362,4.27021696,166.33,166.25,7.38667936]
[1730842141363,12.311081,166.33,166.25,7.38667936]
[1730842141563,11.004881,166.33,166.3,7.38667936]
[1730842141763,14.011081,166.33,166.32,7.38667936]
[1730842141958,1.2749,166.35,166.32,7.38667936]
[1730842143170,3.0065,166.32,166.27,3.0071]
[1730842143361,3.0065,166.32,166.3,7.38667936]
[1730842143956,3.0065,166.32,166.31,7.38667936]
[1730842144866,1.2749,166.35,166.31,7.38667936]
[1730842145069,3.0061,166.34,166.32,7.38667936]
[1730842145562,4.2807,166.35,166.32,7.38667936]
[1730842147565,3.006,166.34,166.32,7.38667936]
[1730842148368,3.006,166.34,166.31,7.38667936]
[1730842151569,7.38667936,166.37,166.31,7.38667936]
[1730842152669,7.38667936,166.35,166.29,7.38667936]
[1730842152977,7.38667936,166.34,166.28,7.38667936]
[1730842154376,3.0067,166.31,166.28,7.38667936]
[1730842160677,3.0065,166.32,166.28,10.39377936]
[1730842160973,7.38667936,166.36,166.31,7.38667936]
[1730842161380,3.22,166.39,166.32,7.38667936]
[1730842161568,7.38667936,166.38,166.31,7.38667936]
[1730842163477,3.006,166.34,166.31,7.38667936]
[1730842164576,3.0063,166.33,166.29,7.38667936]
[1730842165477,7.38667936,166.35,166.28,3.007]
[1730842165776,7.38667936,166.35,166.28,10.60667936]
[1730842166183,3.0062,166.33,166.28,10.60667936]
[1730842166384,7.38667936,166.35,166.28,10.60667936]
[1730842167275,3.0065,166.32,166.28,10.60667936]
[1730842167475,3.0065,166.32,166.28,13.61377936]
[1730842173471,7.38667936,166.35,166.28,13.61377936]
[1730842173472,3.0066,166.31,166.28,13.61377936]
[1730842180280,3.0066,166.31,166.28,6.2271]
[1730842180484,3.0066,166.31,166.28,13.61377936]
[1730842182087,3.0066,166.31,166.28,10.39377936]
[1730842183892,3.0066,166.31,166.29,3.0069]
[1730842184285,7.38667936,166.36,166.29,3.0069]
[1730842184485,3.0065,166.32,166.29,3.0069]
[1730842185593,3.0065,166.31,166.29,3.0069]
[1730842190095,3.2,166.32,99.419,13.1540153]
[1730842190294,3.2,166.32,166.14,8.37744604]
[1730842190295,19.4604,166.3,166.14,8.37744604]
[1730842190600,3.0075,166.26,166.18,7.38667936]
[1730842190901,7.38667936,166.26,166.18,7.38667936]
[1730842191097,7.38667936,166.24,166.18,7.38667936]
[1730842191289,7.38667936,166.24,166.18,10.60667936]
[1730842191290,3.0083,166.22,166.18,10.60667936]
[1730842191795,3.0081,166.23,166.18,3.22]
[1730842191993,7.38667936,166.24,166.18,3.22]
[1730842192500,3.0083,166.22,166.18,3.22]
[1730842192701,3.0083,166.22,166.19,7.38667936]
[1730842198703,3.0084,166.21,166.19,7.38667936]
[1730842201904,3.0085,166.2,166.18,3.22]
[1730842202096,7.38667936,166.24,166.19,7.38667936]
[1730842202300,2.6967,166.28,166.21,7.38667936]
[1730842202604,1.353,166.28,166.25,7.38667936]
[1730842202799,3.22,166.35,166.27,7.38667936]
[1730842203001,3.22,166.35,166.3,7.38667936]
[1730842203002,3.0065,166.31,166.3,7.38667936]
[1730842203214,1.3356,166.35,166.3,7.38667936]
[1730842203401,1.3356,166.35,166.32,7.38667936]
[1730842203610,3.0062,166.33,166.32,7.38667936]
[1730842203802,3.0062,166.33,166.3,7.38667936]
[1730842204003,3.0062,166.33,166.28,3.007]
[1730842204004,8.72227936,166.35,166.2,3.8467]
[1730842204209,3.0067,166.3,166.28,7.38667936]
[1730842204424,7.38667936,166.32,166.26,10.58667936]
[1730842204713,3.0067,166.31,166.26,7.38667936]
[1730842205012,7.38667936,166.32,166.26,7.38667936]
[1730842205202,3.007,166.29,166.28,7.38667936]
[1730842205402,8.72227936,166.35,166.28,7.38667936]
[1730842205613,8.72227936,166.35,166.25,3.2]
[1730842205813,7.38667936,166.33,166.28,7.38667936]
[1730842206710,3.0069,166.3,166.28,7.38667936]
[1730842207011,1.3356,166.35,166.29,7.38667936]
[1730842207210,3.0064,166.32,166.29,7.38667936]
[1730842207411,7.38667936,166.34,166.28,7.38667936]
[1730842207603,7.38667936,166.33,166.28,7.38667936]
[1730842207912,3.0067,166.3,166.28,7.38667936]
[1730842208113,7.38667936,166.33,166.28,7.38667936]
[1730842208610,3.0067,166.31,166.28,7.38667936]
[1730842209001,7.38667936,166.33,166.26,10.58667936]
[1730842209208,3.007,166.29,166.26,10.58667936]
[1730842214011,1.3356,166.35,166.26,7.38667936]
[1730842214012,7.38667936,166.31,166.26,7.38667936]
[1730842214208,3.0075,166.26,166.22,3.2]
[1730842214413,3.0075,166.26,166.23,7.38667936]
[1730842217916,7.38667936,166.29,166.23,7.38667936]
[1730842218220,3.0078,166.24,166.22,10.58667936]
[1730842218615,3.008,166.23,166.22,7.38667936]
[1730842218910,7.38667936,166.27,166.22,7.38667936]
[1730842219316,3.0078,166.24,166.22,7.38667936]
[1730842220111,1.294,166.29,166.23,7.38667936]
[1730842220311,1.294,166.29,166.25,7.38667936]
[1730842221224,3.0074,166.26,166.25,7.38667936]
[1730842224918,3.0074,166.26,166.23,7.38667936]
[1730842225522,8.68067936,166.29,166.23,7.38667936]
[1730842226326,3.0077,166.25,166.23,7.38667936]
[1730842227120,8.68067936,166.29,166.23,7.38667936]
[1730842227325,3.0075,166.26,166.23,7.38667936]
[1730842229821,3.0072,166.28,166.25,7.38667936]
[1730842230025,18.07,166.4,166.27,7.38667936]
[1730842230026,10.58667936,166.34,166.27,7.38667936]
[1730842230215,7.38667936,166.34,166.27,7.38667936]
[1730842231021,3.007,166.29,166.27,7.38667936]
[1730842232324,3.0067,166.3,166.27,7.38667936]
[1730842232523,7.1261,166.36,166.27,7.38667936]
[1730842232716,7.38667936,166.34,166.27,7.38667936]
[1730842232916,3.0067,166.31,166.27,7.38667936]
[1730842234628,3.0067,166.3,166.27,7.38667936]
[1730842235027,3.0067,166.3,166.26,3.0074]
[1730842235231,3.0067,166.3,166.27,7.38667936]
[1730842237334,7.38667936,166.33,166.27,7.38667936]
[1730842238223,7.1261,166.36,166.29,7.38667936]
[1730842238623,7.1261,166.36,166.3,7.38667936]
[1730842238624,11.31277936,166.36,166.3,7.38667936]
[1730842239022,3.0063,166.33,166.3,7.38667936]
[1730842239227,11.31277936,166.36,166.3,7.38667936]
[1730842239830,3.9261,166.36,166.3,7.38667936]
[1730842240029,9.93967936,166.36,166.3,7.38667936]
[1730842240233,2.553,166.36,166.3,7.38667936]
[1730842240422,9.93967936,166.36,166.3,7.38667936]
[1730842241228,3.006,166.34,166.3,10.39337936]
[1730842242038,3.0064,166.32,166.29,10.58667936]
[1730842242727,3.0067,166.31,166.29,3.2]
[1730842243034,3.0067,166.31,166.21,3.9092]
[1730842243035,7.38667936,166.3,166.24,7.38667936]
[1730842243234,3.007,166.29,166.25,6.2075]
[1730842243430,7.38667936,166.3,166.25,3.2]
[1730842243637,7.38667936,166.32,166.26,7.38667936]
[1730842243949,3.0068,166.3,166.26,10.39407936]
[1730842244234,7.38667936,166.32,166.26,10.39407936]
[1730842245139,3.0069,166.29,166.26,10.39407936]
[1730842246838,3.0073,166.27,166.26,7.38667936]
[1730842247030,7.38667936,166.32,166.26,7.38667936]
[1730842247331,3.0075,166.26,166.24,7.38667936]
[1730842247533,7.38667936,166.3,166.24,10.58667936]
[1730842248032,7.38667936,166.3,166.26,7.38667936]
[1730842248033,3.0069,166.3,166.26,7.38667936]